bitfinex/quotes_ETHUSD_20250730
["timestamp","ask_amount","ask_price","bid_price","bid_amount"]
[1753889936964,3.0,3798.2,3798.1,0.9292]
[1753889937271,4.139,3798.4,3798.1,0.9292]
[1753889937471,3.0,3798.3,3798.2,0.452]
[1753889937971,0.7826,3798.2,3798.1,0.04]
[1753889938191,1.6945,3798.2,3798.1,0.04]
[1753889938977,1.2427,3798.2,3798.1,0.04]
[1753889939131,0.7826,3798.2,3798.1,0.04]
[1753889939332,7.138,3798.2,3798.1,0.492]
[1753889939744,7.138,3798.2,3798.1,0.04]
[1753889939950,7.5981,3798.2,3798.1,0.04]
[1753889940628,7.138,3798.2,3798.1,0.04]
[1753889940988,7.84247264,3798.2,3798.1,0.04]
[1753889941182,8.1819,3798.2,3798.1,0.04]
[1753889943190,7.7301,3798.2,3798.1,0.04]
[1753889943791,3.132,3798.2,3798.1,0.04]
[1753889943959,3.0,3798.2,3798.1,0.493]
[1753889944158,0.8237,3798.8,3798.1,1.11455]
[1753889944359,3.132,3798.6,3798.2,0.452]
[1753889944668,4.138,3798.5,3798.3,0.584]
[1753889944996,7.138,3798.5,3798.4,0.452]
[1753889945200,0.132,3798.8,3798.4,0.452]
[1753889945501,4.138,3798.7,3798.6,0.7813]
[1753889945678,4.138,3798.7,3798.6,0.9133]
[1753889945865,4.138,3798.7,3798.6,1.8025]
[1753889946066,4.138,3798.7,3798.6,1.3653]
[1753889946403,4.138,3798.7,3798.6,0.452]
[1753889946609,4.138,3798.7,3798.4,0.132]
[1753889946777,4.138,3798.7,3798.4,0.584]
[1753889946973,4.138,3798.7,3798.4,0.132]
[1753889947179,4.138,3798.7,3798.5,0.452]
[1753889948309,4.138,3798.7,3798.2,0.452]
[1753889948475,4.138,3798.7,3798.1,0.041]
[1753889948476,3.0,3798.6,3798.3,0.132]
[1753889948667,0.7938,3798.5,3798.1,0.041]
[1753889948868,0.132,3798.4,3798.1,0.041]
[1753889949104,4.5971,3798.3,3798.1,0.041]
[1753889949532,7.137,3798.3,3798.2,0.452]
[1753889950210,7.137,3798.3,3798.1,0.041]
[1753889950419,7.137,3798.3,3798.1,0.493]
[1753889950792,7.5971,3798.3,3798.1,0.041]
[1753889951333,7.137,3798.3,3798.1,0.041]
[1753889952529,0.93198423,3798.2,3798.1,0.041]
[1753889952911,0.48018423,3798.2,3798.1,0.041]
[1753889953157,7.137,3798.3,3798.1,0.041]
[1753889954993,7.5971,3798.3,3798.1,0.041]
[1753889955738,0.9119,3798.2,3798.1,0.041]
[1753889955888,1.06398423,3798.2,3798.1,0.041]
[1753889956931,0.5921,3798.2,3798.1,0.041]
[1753889957305,4.048,3798.2,3798.1,0.041]
[1753889957723,4.06808423,3798.2,3798.1,0.041]
[1753889958648,4.61808423,3798.2,3798.1,0.041]
[1753889958999,4.598,3798.2,3798.1,0.041]
[1753889959509,4.61808423,3798.2,3798.1,0.041]
[1753889959703,5.37358423,3798.2,3798.1,0.041]
[1753889959903,5.3535,3798.2,3798.1,0.041]
[1753889961142,5.59513426,3798.2,3798.1,0.041]
[1753889961752,35.59513426,3798.2,3798.1,0.041]
[1753889962254,5.79553382,3798.2,3798.1,0.041]
[1753889962545,35.79553382,3798.2,3798.1,0.041]
[1753889964913,43.17892784,3798.2,3798.1,0.041]
[1753889965257,34.3708,3797.8,3797.7,0.001]
[1753889965457,38.87943426,3797.8,3797.7,0.001]
[1753889965628,39.78313426,3797.8,3797.7,0.001]
[1753889966153,3.132,3797.8,3797.7,0.4907]
[1753889966349,4.266,3797.8,3797.7,0.9279]
[1753889966551,4.134,3797.8,3797.7,0.9279]
[1753889966718,0.132,3797.9,3797.7,0.9279]
[1753889966912,0.132,3798.0,3797.8,0.4897]
[1753889967118,4.135,3797.9,3797.7,0.001]
[1753889967757,4.135,3797.9,3797.8,0.4897]
[1753889968062,4.134,3797.9,3797.8,0.9269]
[1753889968773,0.132,3798.1,3797.8,0.9269]
[1753889969053,7.134,3798.0,3797.9,1.733]
[1753889969829,4.134,3798.1,3797.9,1.9196]
[1753889970030,4.134,3798.1,3798.0,0.9269]
[1753889970227,0.7964,3799.2,3798.0,0.9269]
[1753889970426,4.134,3799.0,3798.4,0.132]
[1753889970668,3.37426768,3798.9,3798.5,0.9269]
[1753889970853,3.0,3798.7,3798.6,0.9269]
[1753889971024,3.0,3798.7,3798.6,0.4372]
[1753889971229,4.134,3798.8,3798.6,0.4897]
[1753889971438,3.0,3798.7,3798.6,0.4897]
[1753889971641,3.0,3798.7,3798.4,0.132]
[1753889971826,4.133,3798.6,3798.4,0.132]
[1753889972037,4.133,3798.6,3798.2,1.2686]
[1753889972038,0.02008423,3798.5,3798.2,0.8314]
[1753889972237,4.133,3798.4,3798.2,0.4897]
[1753889972458,4.133,3798.4,3798.0,0.132]
[1753889972653,7.133,3798.4,3798.3,0.4897]
[1753889973252,0.24220374,3798.4,3798.3,1.7177]
[1753889973431,4.37520374,3798.4,3798.3,2.28476147]
[1753889973668,4.37520374,3798.4,3798.3,1.2805]
[1753889974046,4.133,3798.4,3798.3,1.2805]
[1753889974379,4.37517087,3798.4,3798.3,1.2805]
[1753889975272,4.37517087,3798.4,3798.3,1.7177]
[1753889975634,4.37517087,3798.4,3798.2,0.132]
[1753889975956,3.84213503,3798.3,3797.8,0.4897]
[1753889976270,4.3742508,3798.2,3797.8,0.4897]
[1753889976436,0.2422508,3798.1,3797.8,0.4897]
[1753889976636,4.132,3798.0,3797.7,0.9211]
[1753889976962,4.132,3798.0,3797.7,0.001]
[1753889977750,4.132,3798.0,3797.7,0.4907]
[1753889978767,4.132,3798.0,3797.7,0.001]
[1753889978936,4.5798,3798.0,3797.7,0.001]
[1753889979331,0.4559,3797.9,3797.7,0.001]
[1753889979576,4.263,3797.8,3797.7,0.001]
[1753889980158,4.131,3797.8,3797.7,0.4907]
[1753889981635,4.131,3797.8,3797.7,0.001]
[1753889981981,9.5344,3797.8,3797.7,0.001]
[1753889982542,9.0775,3797.8,3797.7,0.001]
[1753889982740,7.262,3797.8,3797.7,0.001]
[1753889982960,7.7098,3797.8,3797.7,0.001]
[1753889983202,8.1657,3797.8,3797.7,0.001]
[1753889983642,3.132,3797.8,3797.7,0.001]
[1753889984190,7.262,3797.8,3797.7,0.001]
[1753889984334,8.1657,3797.8,3797.7,0.001]
[1753889984535,9.4733,3797.8,3797.7,0.001]
[1753889988488,9.71583153,3797.8,3797.7,0.001]
[1753889989194,5.58583153,3797.8,3797.7,0.001]
[1753889989401,9.71483153,3797.8,3797.7,0.001]
[1753889992418,5.58583153,3797.8,3797.7,0.001]
[1753889992588,8.0186,3797.8,3797.7,0.001]
[1753889992795,3.8896,3797.8,3797.7,0.001]
[1753889993023,7.261,3797.8,3797.7,0.4735]
[1753889993408,0.132,3797.8,3797.7,0.4735]
[1753889993723,0.4586,3798.6,3797.7,0.9107]
[1753889993724,0.132,3798.1,3797.7,0.9107]
[1753889994019,0.002,3798.6,3797.7,0.9107]
[1753889994020,4.129,3798.0,3797.8,1.0417]
[1753889994318,7.129,3798.0,3797.9,0.9097]
[1753889994815,4.129,3798.0,3797.9,0.9097]
[1753889995016,4.129,3798.0,3797.9,1.728]
[1753889995218,0.134,3798.6,3797.9,1.728]
[1753889995219,0.002,3798.6,3797.9,1.728]
[1753889995422,0.002,3798.6,3798.5,0.8183]
[1753889995723,0.002,3798.6,3798.5,0.9503]
[1753889995895,0.002,3798.6,3798.5,1.86]
[1753889997920,0.002,3798.6,3798.5,1.4228]
[1753889998221,0.002,3798.6,3798.5,1.2908]
[1753890001730,0.002,3798.6,3798.5,0.4725]
[1753890002074,0.002,3798.6,3798.3,0.6045]
[1753890002209,0.002,3798.6,3798.4,0.4725]
[1753890002410,0.002,3798.6,3798.5,2.63261813]
[1753890002664,0.002,3798.6,3798.5,3.06981813]
[1753890002822,0.002,3798.6,3798.5,1.8516]
[1753890003623,0.002,3798.6,3798.5,4.48421813]
[1753890004128,0.002,3798.6,3798.5,1.4144]
[1753890004527,0.002,3798.6,3798.5,1.8516]
[1753890004716,0.002,3798.6,3798.5,4.62565813]
[1753890004910,0.002,3798.6,3798.5,1.99304]
[1753890005419,0.002,3798.6,3798.5,4.62565813]
[1753890005756,0.002,3798.6,3798.5,1.99304]
[1753890006446,0.002,3798.6,3798.5,4.62565813]
[1753890006656,0.002,3798.6,3798.5,1.99304]
[1753890007153,0.002,3798.6,3798.5,4.62565813]
[1753890007478,0.002,3798.6,3798.5,10.21055456]
[1753890007764,0.002,3799.1,3799.0,9.03626808]
[1753890007919,0.002,3799.1,3799.0,10.20313029]
[1753890008113,0.002,3799.1,3799.0,10.33513029]
[1753890008310,0.002,3799.1,3799.0,11.24483029]
[1753890008745,0.002,3799.1,3799.0,15.36883029]
[1753890008941,1e-08,3799.1,3799.0,15.36883029]
[1753890009258,0.04,3799.9,3799.4,3.45109452]
[1753890009554,0.04,3799.9,3799.4,4.19061171]
[1753890009779,0.04,3799.9,3799.4,5.10031171]
[1753890010536,0.04,3799.9,3799.4,5.12663165]
[1753890011099,0.04,3799.9,3799.8,3.38791745]
[1753890011385,0.04,3799.9,3799.8,13.12213105]
[1753890011550,0.04,3799.9,3799.8,15.67188009]
[1753890011738,0.04,3799.9,3799.8,15.80308009]
[1753890012164,0.04,3799.9,3799.8,11.24288009]
[1753890012376,0.04,3799.9,3799.8,15.36588009]
[1753890012577,0.04,3799.9,3799.8,15.80308009]
[1753890015256,0.002,3800.2,3800.1,2.63150969]
[1753890015447,0.002,3800.2,3800.1,9.56832311]
[1753890015641,0.002,3800.2,3800.1,10.58290802]
[1753890018387,0.002,3800.2,3800.1,10.14470802]
[1753890018566,0.002,3800.2,3800.1,0.1312]
[1753890019097,0.002,3800.2,3800.1,4.01822478]
[1753890019855,0.002,3800.6,3800.5,3.42753273]
[1753890020168,0.002,3800.6,3800.5,13.26362916]
[1753890020496,0.002,3800.6,3800.5,13.73902916]
[1753890020661,0.002,3800.6,3800.5,15.41978357]
[1753890023883,0.002,3800.6,3800.5,14.94338357]
[1753890024196,0.04,3800.9,3800.8,2.63102504]
[1753890024359,0.04,3800.9,3800.8,6.90753529]
[1753890024560,0.04,3800.9,3800.8,7.35662504]
[1753890024800,0.04,3800.9,3800.8,9.42471658]
[1753890024970,0.04,3801.9,3801.1,0.7601]
[1753890025173,0.04,3801.9,3801.4,8.21544528]
[1753890025394,0.4716,3801.8,3801.5,4.118]
[1753890025717,0.4716,3801.7,3801.5,7.98188859]
[1753890025930,0.04,3801.9,3801.7,0.1312]
[1753890026205,0.5116,3801.9,3801.8,2.761533]
[1753890026411,0.04,3801.9,3801.8,0.1312]
[1753890026570,0.9931,3801.9,3801.8,0.1312]
[1753890026765,0.04,3801.9,3801.8,1.47715534]
[1753890027076,0.5116,3801.9,3801.8,0.67945534]
[1753890027784,0.5116,3801.9,3800.7,0.7923]
[1753890027785,0.9931,3801.9,3800.7,0.7923]
[1753890028011,1.8711,3801.8,3800.6,4.117]
[1753890028215,0.04,3801.9,3801.0,0.1312]
[1753890028216,1.7764,3801.7,3801.0,0.1312]
[1753890028361,1.7764,3801.7,3800.2,1.2285]
[1753890028362,0.8233,3801.5,3800.2,0.7531]
[1753890028582,0.1312,3801.3,3800.8,0.1312]
[1753890028834,0.8262,3801.1,3799.9,4.117]
[1753890028982,0.9574,3801.1,3800.5,0.1312]
[1753890029179,0.9531,3801.0,3800.5,0.1312]
[1753890029680,0.1312,3800.6,3800.0,0.1312]
[1753890029993,0.9531,3800.5,3800.0,0.1312]
[1753890030175,0.9531,3800.4,3800.0,0.1312]
[1753890030528,0.9531,3800.3,3800.0,0.1312]
[1753890030729,0.4716,3800.3,3800.2,0.1312]
[1753890031324,0.8262,3800.8,3800.3,2.63135691]
[1753890031537,0.4716,3801.0,3800.4,6.06029643]
[1753890031833,0.9531,3801.3,3800.9,0.1312]
[1753890031987,0.9531,3801.2,3800.4,8.2161868]
[1753890032203,0.4716,3801.2,3801.1,0.1312]
[1753890032619,0.9531,3801.2,3801.1,0.1312]
[1753890033135,0.002,3801.4,3801.1,0.1312]
[1753890033595,0.002,3801.4,3800.9,5.58489643]
[1753890033796,0.002,3801.4,3801.3,2.76187897]
[1753890033998,0.002,3801.4,3801.3,0.1312]
[1753890034377,0.4736,3801.4,3801.3,0.1312]
[1753890034580,0.4736,3801.4,3800.8,4.116]
[1753890034581,0.9551,3801.4,3800.8,4.116]
[1753890034807,0.9531,3801.3,3801.2,0.1312]
[1753890035222,0.55,3801.2,3799.9,0.001]
[1753890035523,0.1312,3800.8,3800.2,0.1312]
[1753890036028,0.9531,3800.7,3800.2,0.1312]
[1753890036228,0.9531,3800.6,3800.2,0.1312]
[1753890036532,0.4716,3800.5,3800.2,0.1312]
[1753890036846,0.9531,3800.5,3800.2,0.1312]
[1753890037141,0.9531,3800.4,3800.2,0.1312]
[1753890037429,0.4716,3800.3,3800.2,0.1312]
[1753890037596,0.9531,3800.3,3800.2,0.1312]
[1753890038106,1.7758,3800.3,3800.2,0.1312]
[1753890038307,1.7758,3800.3,3799.9,0.001]
[1753890038499,0.02008423,3800.2,3799.9,0.001]
[1753890038696,0.97318423,3800.2,3799.9,0.001]
[1753890039105,0.9531,3800.1,3799.9,0.001]
[1753890039498,0.9531,3800.0,3799.9,0.001]
[1753890040415,0.4815,3800.0,3799.9,0.001]
[1753890040595,0.9531,3800.0,3799.9,0.001]
[1753890041298,0.8227,3800.3,3799.9,0.1322]
[1753890041717,0.4716,3800.2,3800.1,0.1312]
[1753890042286,0.9531,3800.2,3800.1,0.1312]
[1753890044588,0.4716,3800.2,3800.1,0.1312]
[1753890044987,3.0,3800.9,3800.1,0.1312]
[1753890044988,0.7827,3800.7,3800.1,0.6066]
[1753890045225,0.7827,3800.7,3800.5,0.1312]
[1753890045398,0.7925,3801.0,3800.5,0.1312]
[1753890045602,0.4716,3801.1,3800.9,0.1312]
[1753890046657,0.1332,3801.4,3800.9,0.1312]
[1753890046949,0.002,3801.4,3801.3,0.1312]
[1753890047354,0.4731,3801.4,3801.3,0.1312]
[1753890047720,0.71551591,3801.4,3801.3,0.1312]
[1753890048250,1.21311591,3801.4,3801.3,0.1312]
[1753890048754,1.21311591,3801.4,3801.2,0.1312]
[1753890048952,0.24241591,3801.3,3801.2,0.1312]
[1753890049158,0.71351591,3801.3,3801.2,0.1312]
[1753890049358,0.002,3801.4,3801.2,0.1312]
[1753890050928,0.4731,3801.4,3801.2,0.1312]
[1753890051534,0.002,3801.4,3801.3,0.4514]
[1753890051752,0.002,3801.4,3801.3,0.5894]
[1753890053343,0.002,3801.4,3801.3,0.138]
[1753890053552,0.002,3801.4,3801.3,0.5894]
[1753890055459,0.002,3801.4,3801.2,0.1312]
[1753890055658,0.9687,3801.3,3801.2,0.1312]
[1753890055860,0.4711,3801.3,3801.2,0.1312]
[1753890056061,0.002,3801.4,3801.2,0.1312]
[1753890056272,0.9687,3801.3,3801.2,0.1312]
[1753890056777,0.9687,3801.3,3801.0,0.001]
[1753890056778,1.7704,3801.3,3801.0,0.001]
[1753890056937,0.9687,3801.2,3801.0,0.001]
[1753890057138,0.02008423,3801.1,3801.0,0.001]
[1753890057344,0.98878423,3801.1,3801.0,0.001]
[1753890058566,0.9687,3801.1,3801.0,0.001]
[1753890060180,1.7405,3801.1,3801.0,0.001]
[1753890060387,1.2429,3801.1,3801.0,0.001]
[1753890060546,0.7718,3801.1,3801.0,0.001]
[1753890060745,1.2429,3801.1,3801.0,0.001]
[1753890061067,1.7405,3801.1,3801.0,0.001]
[1753890062655,1.76058423,3801.1,3801.0,0.001]
[1753890062851,5.55314327,3801.1,3801.0,0.001]
[1753890063057,5.53305904,3801.1,3801.0,0.001]
[1753890063797,8.8525,3801.1,3801.0,0.001]
[1753890063967,8.3549,3801.1,3801.0,0.001]
[1753890064167,8.8525,3801.1,3801.0,0.001]
[1753890065060,9.09500676,3801.1,3801.0,0.001]
[1753890066983,8.8525,3801.1,3801.0,0.001]
[1753890067375,9.4025,3801.1,3801.0,0.001]
[1753890067899,9.64503206,3801.1,3801.0,0.001]
[1753890069276,9.4025,3801.1,3801.0,0.001]
[1753890070314,9.64498793,3801.1,3801.0,0.001]
[1753890070676,9.4025,3801.1,3801.0,0.001]
[1753890071181,9.64496281,3801.1,3801.0,0.001]
[1753890072207,9.4025,3801.1,3801.0,0.001]
[1753890073784,9.6448992,3801.1,3801.0,0.001]
[1753890074395,9.4025,3801.1,3801.0,0.001]
[1753890075553,39.88715456,3801.1,3799.9,0.001]
[1753890075831,30.0,3800.4,3799.9,0.001]
[1753890076028,0.55,3800.1,3799.9,0.001]
[1753890076231,7.7912,3800.0,3799.9,0.001]
[1753890076534,8.2623,3800.0,3799.9,0.001]
[1753890077507,9.517,3800.0,3799.9,0.001]
[1753890080191,9.5056,3800.0,3799.9,0.001]
[1753890081415,9.0421,3800.0,3799.9,0.001]
[1753890081841,9.5056,3800.0,3799.9,0.001]
[1753890082207,9.0421,3800.0,3799.9,0.001]
[1753890083050,9.5056,3800.0,3799.9,0.001]
[1753890084149,9.0421,3800.0,3799.9,0.001]
[1753890084318,4.4724,3800.0,3799.9,0.001]
[1753890084662,7.11,3800.0,3799.9,0.4625]
[1753890086356,7.11,3800.0,3799.9,0.001]
[1753890087275,7.109,3800.0,3799.9,0.4625]
[1753890088546,3.0,3800.0,3799.9,1.6961]
[1753890088744,7.109,3800.0,3799.9,1.86571]
[1753890089884,4.109,3800.0,3799.9,1.86571]
[1753890090031,4.109,3800.0,3799.9,0.001]
[1753890090231,4.2402,3800.0,3799.9,0.001]
[1753890090427,8.6225,3800.0,3799.9,0.001]
[1753890090632,9.78796818,3800.0,3799.9,0.001]
[1753890090946,39.78796818,3800.0,3799.9,0.001]
[1753890092273,9.32446818,3800.0,3799.9,0.001]
[1753890092977,5.21565237,3800.0,3799.9,0.001]
[1753890093181,8.86395237,3800.0,3799.9,0.001]
[1753890093350,9.32365237,3800.0,3799.9,0.001]
[1753890094435,8.86395237,3800.0,3799.9,0.001]
[1753890095582,8.86470033,3800.0,3799.9,0.001]
[1753890096784,3.37440033,3800.0,3799.9,0.4625]
[1753890097079,7.48240033,3800.0,3799.9,0.4625]
[1753890097706,4.48240033,3800.0,3799.9,0.4625]
[1753890098402,4.35120033,3800.0,3799.9,0.4625]
[1753890098709,4.107,3800.0,3799.9,0.8997]
[1753890098995,3.0,3801.0,3800.0,0.8011]
[1753890099146,0.1312,3800.8,3800.0,0.8011]
[1753890099346,0.002,3800.6,3800.3,0.1312]
[1753890099546,3.0,3800.4,3800.3,0.1312]
[1753890099774,3.24354402,3800.4,3800.3,0.1312]
[1753890100145,3.0,3800.4,3800.3,1.0299]
[1753890100857,3.0,3800.4,3800.3,0.5927]
[1753890101263,3.24341795,3800.4,3800.3,0.5927]
[1753890101600,3.24341795,3800.4,3800.3,1.0299]
[1753890102494,3.24341795,3800.4,3800.3,0.5927]
[1753890102991,3.0,3800.4,3800.3,0.5927]
[1753890103299,3.0,3800.4,3800.3,1.0299]
[1753890103465,4.107,3800.5,3800.3,1.213]
[1753890103664,4.107,3800.5,3800.4,0.7785]
[1753890104067,4.107,3800.5,3800.4,1.24]
[1753890104903,0.002,3800.6,3800.4,1.24]
[1753890105063,4.106,3800.5,3800.4,1.24]
[1753890105265,4.106,3800.5,3800.4,0.7785]
[1753890105882,4.106,3800.5,3800.4,1.24]
[1753890107301,4.106,3800.5,3799.9,0.60468]
[1753890107302,5.0147,3800.5,3800.0,0.1312]
[1753890107455,0.4441,3800.4,3800.0,0.1312]
[1753890107662,4.105,3800.3,3800.0,0.608]
[1753890107865,4.105,3800.3,3800.1,0.4768]
[1753890108065,4.105,3800.3,3800.2,0.4768]
[1753890109382,4.105,3800.3,3800.0,0.1312]
[1753890109980,0.92878423,3800.2,3799.9,0.1322]
[1753890110188,0.46418423,3800.2,3799.9,0.1322]
[1753890110386,0.4441,3800.2,3799.9,0.609]
[1753890110683,4.105,3800.3,3799.9,0.609]
[1753890111574,4.5491,3800.3,3799.9,0.609]
[1753890113488,0.4441,3800.2,3799.9,0.1322]
[1753890113986,0.4441,3800.1,3799.9,0.001]
[1753890115892,0.46418423,3800.0,3799.9,0.001]
[1753890116279,0.4441,3800.0,3799.9,0.001]
[1753890116924,4.868,3800.3,3799.9,0.001]
[1753890117096,5.3121,3800.3,3799.9,0.001]
[1753890117292,0.9087,3800.2,3799.9,0.001]
[1753890117815,0.4441,3800.1,3799.9,0.001]
[1753890118520,0.4646,3800.1,3799.9,0.001]
[1753890118691,4.5471,3800.0,3799.9,0.001]
[1753890119327,4.103,3800.0,3799.9,0.001]
[1753890120299,4.5471,3800.0,3799.9,0.001]
[1753890120498,5.0117,3800.0,3799.9,0.001]
[1753890120905,8.03178423,3800.0,3799.9,0.001]
[1753890121085,8.0117,3800.0,3799.9,0.001]
[1753890122032,8.5617,3800.0,3799.9,0.001]
[1753890122330,9.3279,3800.0,3799.9,0.001]
[1753890122515,39.92030622,3800.0,3799.9,0.001]
[1753890122721,39.57084852,3800.0,3799.9,0.001]
[1753890122923,51.98542746,3800.0,3799.9,0.001]
[1753890123106,37.01275598,3799.6,3799.5,0.001]
[1753890123310,41.24595598,3799.6,3799.5,0.001]
[1753890123496,42.15465598,3799.6,3799.5,0.001]
[1753890123696,39.76573626,3799.6,3799.5,0.001]
[1753890123897,39.96644554,3799.6,3799.5,0.001]
[1753890124840,40.2092508,3799.6,3799.5,0.001]
[1753890125137,47.2192508,3799.6,3799.5,0.001]
[1753890126923,17.2192508,3799.6,3799.5,0.001]
[1753890127095,42.6526508,3799.6,3799.5,0.001]
[1753890127296,42.2085508,3799.6,3799.5,0.001]
[1753890127526,16.2036508,3799.6,3799.5,0.001]
[1753890127725,47.2182508,3799.6,3799.5,0.001]
[1753890128046,46.6682508,3799.6,3799.5,0.001]
[1753890128218,47.2182508,3799.6,3799.5,0.001]
[1753890129630,9.00784152,3799.6,3799.5,0.001]
[1753890129832,0.37413626,3799.6,3799.5,0.001]
[1753890130032,4.47513626,3799.6,3799.5,0.4778]
[1753890130249,5.02513626,3799.6,3799.5,0.001]
[1753890130716,5.46923626,3799.6,3799.5,0.001]
[1753890130915,10.11469396,3799.6,3799.5,0.001]
[1753890131658,10.35647424,3799.6,3799.5,0.001]
[1753890131857,10.55436206,3799.6,3799.5,0.001]
[1753890132218,40.55436206,3799.6,3799.5,0.001]
[1753890132419,40.20490436,3799.6,3799.5,0.001]
[1753890132635,39.96312408,3799.6,3799.5,0.001]
[1753890133215,9.96312408,3799.6,3799.5,0.001]
[1753890133429,39.96312408,3799.6,3799.5,0.001]
[1753890133633,40.31258178,3799.6,3799.5,0.001]
[1753890134812,35.31212408,3799.6,3799.5,0.001]
[1753890135162,4.47513626,3799.6,3799.5,0.4778]
[1753890135569,5.0238888,3799.6,3799.5,0.4778]
[1753890135733,5.02388919,3799.6,3799.5,0.4778]
[1753890135933,4.47388919,3799.6,3799.5,0.4778]
[1753890136166,0.37288919,3799.6,3799.5,0.4778]
[1753890136332,4.47388919,3799.6,3799.5,0.4778]
[1753890136536,4.2322,3799.6,3799.5,0.4778]
[1753890136782,4.2312,3799.6,3799.5,0.4778]
[1753890138475,5.7019,3799.6,3799.5,0.001]
[1753890138646,39.8804577,3799.6,3799.5,0.001]
[1753890139176,39.77288351,3799.6,3799.5,0.001]
[1753890144248,49.55588351,3799.6,3799.5,0.001]
[1753890144462,52.42992916,3799.6,3799.5,0.001]
[1753890144664,42.92507318,3799.6,3799.5,0.001]
[1753890144899,47.02407318,3799.6,3799.5,0.001]
[1753890147119,47.02453743,3799.6,3799.5,0.001]
[1753890148477,17.02453743,3799.6,3799.5,0.001]
[1753890148674,47.02453743,3799.6,3799.5,0.001]
[1753890150811,52.77885111,3799.6,3799.5,0.001]
[1753890151220,36.78153308,3799.2,3799.1,0.041]
[1753890151380,48.87393743,3799.2,3799.1,0.041]
[1753890151716,49.79463743,3799.2,3799.1,0.041]
[1753890152274,52.42677051,3799.2,3799.1,0.041]
[1753890152476,49.79463743,3799.2,3799.1,0.041]
[1753890153944,49.79463743,3799.2,3798.1,0.04]
[1753890153945,3.55,3798.7,3798.1,0.04]
[1753890154127,3.55,3798.3,3798.1,0.04]
[1753890154272,38.28362166,3798.2,3798.1,0.04]
[1753890154476,38.26353743,3798.2,3798.1,0.04]
[1753890154916,8.26353743,3798.2,3798.1,0.5247]
[1753890155272,8.02134776,3798.2,3798.1,0.5247]
[1753890155518,8.26428285,3798.2,3798.1,0.5247]
[1753890158740,8.74978195,3798.2,3798.1,0.04]
[1753890159029,49.99346572,3798.2,3798.1,0.04]
[1753890159378,49.99375371,3798.2,3798.1,0.04]
[1753890159628,47.01146994,3798.2,3798.1,0.04]
[1753890159823,47.01157775,3798.2,3798.1,0.04]
[1753890160132,52.41740382,3798.2,3798.1,0.04]
[1753890160357,49.78457775,3798.2,3798.1,0.04]
[1753890160855,46.52587775,3798.2,3798.1,0.04]
[1753890161163,45.27447775,3798.2,3798.1,0.5247]
[1753890161347,46.19517775,3798.2,3798.1,0.04]
[1753890161655,39.18517775,3798.2,3798.1,0.04]
[1753890163315,40.00847775,3798.2,3798.1,0.04]
[1753890164030,40.00847775,3798.2,3798.1,0.041]
[1753890164751,42.78147775,3798.2,3798.1,0.041]
[1753890165756,42.29577775,3798.2,3798.1,0.041]
[1753890166309,41.86077775,3798.2,3798.1,0.041]
[1753890166660,33.61747775,3798.2,3798.1,0.5257]
[1753890166859,7.71347775,3798.2,3798.1,0.5257]
[1753890167213,8.02074356,3798.2,3798.1,0.5257]
[1753890167415,38.26320698,3798.2,3798.1,0.041]
[1753890167892,9.54996468,3798.2,3798.1,0.041]
[1753890168178,39.54996468,3798.2,3798.1,0.041]
[1753890168339,39.20054101,3798.2,3798.1,0.041]
[1753890168536,38.26324101,3798.2,3798.1,0.041]
[1753890168734,34.16724101,3798.2,3798.1,0.041]
[1753890168937,8.26324101,3798.2,3798.1,0.5113]
[1753890169741,7.47074356,3798.2,3798.1,0.5113]
[1753890169940,7.47074356,3798.2,3798.1,0.9495]
[1753890170181,3.37474356,3798.2,3798.1,0.9495]
[1753890170472,7.47074356,3798.2,3798.1,1.7275]
[1753890170633,7.228,3798.2,3798.1,1.7275]
[1753890174456,7.778,3798.2,3798.1,1.2893]
[1753890174636,8.02065711,3798.2,3798.1,0.5113]
[1753890174841,7.778,3798.2,3798.1,0.5113]
[1753890175178,8.02068274,3798.2,3798.1,0.041]
[1753890175586,38.47578274,3798.2,3798.1,0.041]
[1753890175884,38.02068274,3798.2,3798.1,0.041]
[1753890176584,33.92468274,3798.2,3798.1,0.041]
[1753890176880,38.01868274,3798.2,3798.1,0.041]
[1753890177086,38.01868274,3798.2,3798.1,0.5113]
[1753890177383,38.01868274,3798.2,3798.1,0.041]
[1753890177935,34.16745335,3798.2,3798.1,0.041]
[1753890178252,4.46868274,3798.2,3798.1,1.717]
[1753890178747,0.37468274,3798.2,3798.1,1.717]
[1753890178938,4.46868274,3798.2,3798.1,1.717]
[1753890179142,0.37468274,3798.2,3798.1,1.8887]
[1753890179384,6.461,3798.8,3798.2,0.7675]
[1753890179690,7.094,3798.7,3798.3,0.8126]
[1753890180036,7.094,3798.7,3798.4,0.9085]
[1753890180284,7.094,3798.7,3798.5,0.4703]
[1753890180463,7.094,3798.7,3798.3,0.8126]
[1753890180648,0.37500435,3798.6,3798.4,0.4703]